Cogmind - Beta 9.1 @@@ ROGUE MODE // 2019.10.30 @ 20:22:11 // Halloween2019/Abominations Player: whitenitro0 Result: Self-destructed Performance ------------- Evolutions (1) 500 Regions Visited (2) 400 Robots Destroyed (19) 95 Value Destroyed (715) 715 Prototype IDs (0) 0 Alien Tech Used (0) 0 Bonus (0) 0 TOTAL SCORE: 1710 Bonus ------- None Cogmind --------- Core Integrity 190/400 Matter 206/300 Energy 246/250 System Corruption 3% Temperature Cool (0) Location -9/Materials Parts ------- Power (1) Ion Engine Propulsion (2) Wheel Compact Wheel Utility (4) Heat Sink Small Storage Unit High-capacity Storage Unit Visual Processing Unit Weapon (2) Shotgun Inventory (14) Wheel Flight Unit Small Storage Unit Medium Matter Pod (100) Medium Matter Pod (100) Signal Interpreter Signal Interpreter Improved Terrain Scanner Light EM Pulse Cannon Grenade Launcher Peak State ------------ Power Ion Engine Propulsion Wheel Wheel Utility Heat Sink Small Storage Unit High-capacity Storage Unit Visual Processing Unit Weapon Light EM Pulse Cannon Light EM Pulse Cannon Inventory Ion Engine Wheel Compact Wheel Hover Unit Flight Unit Small Storage Unit Medium Matter Pod Medium Matter Pod Signal Interpreter Signal Interpreter Improved Terrain Scanner Heavy EM Pulse Gun Shotgun Grenade Launcher [Rating: 13] Favorites ----------- Power Ion Engine Engine Ion Engine Propulsion Wheel Wheel Wheel Utility Small Storage Unit Device Heat Sink Storage Small Storage Unit Processor Visual Processing Unit Weapon Light Assault Rifle Energy Gun Heavy EM Pulse Gun Energy Cannon Light EM Pulse Cannon Ballistic Gun Light Assault Rifle Launcher Grenade Launcher Build | -11 -10 -9 ------- Run | Scr Mat Mat Slots Evolved 2 | . . 2 Power . | . . . Propulsion . | . . . Utility 2 | . . 2 Weapon . | . . . Parts Attached 26 | 7 8 11 Power 2 | 1 . 1 Engine 2 | 1 . 1 Core . | . . . Reactor . | . . . Propulsion 7 | 2 3 2 Treads . | . . . Leg . | . . . Wheel 7 | 2 3 2 Hover . | . . . Flight . | . . . Utility 6 | 2 2 2 Device 2 | 1 . 1 Storage 3 | 1 2 . Processor 1 | . . 1 Hackware . | . . . Protection . | . . . Artifact . | . . . Weapon 11 | 2 3 6 Energy Gun 2 | . 1 1 Energy Cannon 2 | . . 2 Ballistic Gun 6 | 2 1 3 Ballistic Cannon . | . . . Launcher 1 | . 1 . Special Weapon . | . . . Impact Weapon . | . . . Slashing Weapon . | . . . Piercing Weapon . | . . . Special Melee Weapon . | . . . Unidentified Prototypes . | . . . Parts Lost 7 | . 1 6 Power 1 | . . 1 Propulsion 3 | . 1 2 Utility . | . . . Weapon 3 | . . 3 Highest Loss Streak 6 | . 1 6 Average Slot Usage (%) 96 | . 99 92 Engine 12 | . 14 10 Wheel 25 | . 27 22 Device 2 | . . 6 Storage 25 | . 27 22 Processor 4 | . . 10 Energy Gun 1 | . . 1 Energy Cannon 2 | . . 5 Ballistic Gun 20 | . 26 13 Naked Turns . | . . . Heaviest Build 50 | 13 45 50 Greatest Support 32 | 26 32 26 Greatest Overweight (x) 14 | . 14 2 Average Overweight (x) 1 | . 1 1 Largest Inventory Capacity 14 | 6 14 14 Average Capacity 12 | 5 13 14 Most Carried 14 | 5 14 14 Average Carried 10 | 3 11 12 Final Capacity 14 | 6 14 14 Final Carried 12 | 5 12 10 Class Distribution -------------------- 100% | Mutant Dominant Class ---------------- Mutant | -10/Materials Mutant | -9/Materials Resources | -11 -10 -9 ----------- Run | Scr Mat Mat Matter Collected 979 | 326 397 256 Remotely . | . . . Salvage Created 744 | 115 296 333 Parts 44 | 12 21 11 Haulers Intercepted 1 | . . 1 Recyclers Shooed . | . . . Parts Field Recycled . | . . . Retrieved Matter . | . . . Parts Self-Destructed . | . . . Prevented . | . . . Kills | -11 -10 -9 ------- Run | Scr Mat Mat Combat Hostiles Destroyed 12 | . 8 4 Guns 10 | . 7 3 Cannons 1 | . . 1 AOE 1 | . 1 . Classes Destroyed 7 | 2 3 2 Tunneler 3 | 3 . . Hauler 1 | . . 1 Recycler 2 | 1 . 1 Operator 1 | . 1 . Swarmer 1 | . 1 . Grunt 1 | . . 1 Abomination 10 | . 7 3 Best Kill Streak 3 | 3 2 2 Combat Bots Only 2 | . 2 2 Max Kills in Single Turn 1 | 1 1 1 Gunslinging . | . . . Exploded 1 | . 1 . Melee . | . . . Uniques/NPCs Destroyed . | . . . Combat | -11 -10 -9 -------- Run | Scr Mat Mat Damage Taken 1365 | . 431 934 Core 301 | . 91 210 Absorbed by Shields . | . . . Core Remaining (%) 81 | 100 63 . Volleys Fired 106 | 14 54 38 Largest 2 | 2 2 2 Hottest 112 | 40 80 112 Shots Fired 195 | 28 99 68 Gun 172 | 28 90 54 Cannon 14 | . . 14 Launcher 9 | . 9 . Special . | . . . Kinetic 162 | 28 88 46 Thermal 2 | . 2 . Explosive 9 | . 9 . Electromagnetic 22 | . . 22 Robot Hit Streak 11 | 8 10 11 Robot Miss Streak 7 | 2 7 4 Penetration Max . | . . . Secondary Targets 1 | . 1 . Max Gunslinging Chain 1 | . 1 . Shots Hit Robots 121 | 17 54 50 Core Hits 60 | 7 36 17 Critical Hits 1 | 1 . . Critical Kills . | . . . Critical Parts Destroyed 1 | 1 . . Melee Attacks . | . . . Impact . | . . . Slashing . | . . . Piercing . | . . . Sneak Attacks . | . . . Combat Hostiles . | . . . Follow-up Attacks . | . . . Damage Inflicted 1772 | 173 958 641 Guns 1267 | 173 567 527 Cannons 114 | . . 114 Explosions 391 | . 391 . Melee . | . . . Ramming . | . . . Kinetic 1217 | 173 535 509 Thermal 32 | . 32 . Explosive 391 | . 391 . Electromagnetic 132 | . . 132 Impact . | . . . Slashing . | . . . Piercing . | . . . Highest Corruption 3 | . . 3 Average Corruption 1 | . . 1 Corruption Purged . | . . . Effects 1 | . . 1 Energy Discharges 1 | . . 1 Overload Shots . | . . . Overflow Damage 1 | . 1 . Projectiles . | . . . Explosions 1 | . 1 . Melee . | . . . Knockbacks . | . . . Impact . | . . . Kinetic . | . . . Secondary . | . . . Self-Inflicted Damage . | . . . Shots . | . . . Rammed . | . . . Targets Rammed . | . . . Kicked . | . . . Crushed . | . . . Highest Temperature 1190 | . 1190 48 Average Temperature 356 | . 418 15 Received Heat Transfer 159 | . 111 48 Effects 37 | . 37 . Shutdowns 6 | . 6 . Energy Bleed 5 | . 5 . Interference 4 | . 4 . Matter Decay 3 | . 3 . Short Circuit 3 | . 3 . Damage (minor) 3 | . 3 . Damage (major) 12 | . 12 . Damage (core) 1 | . 1 . Siege Activations . | . . . Robots Corrupted . | . . . Combat Hostiles . | . . . Parts Fried 1 | . . 1 Impact Corruptions . | . . . Robots Melted . | . . . Combat Hostiles . | . . . Parts Melted . | . . . Heat Transferred 18 | . 18 . Parts Sabotaged . | . . . Parts Stolen . | . . . Parts Stripped . | . . . Power Chain Reactions . | . . . Missiles Intercepted . | . . . Alert | -11 -10 -9 ------- Run | Scr Mat Mat Peak Influence 53 | 20 53 43 Average Influence 28 | 7 44 17 Maximum Alert Level . | . . . Low Security (%) 100 | . . . Level 1 . | . . . Level 2 . | . . . Level 3 . | . . . Level 4 . | . . . Level 5 . | . . . High Security . | . . . Max Security . | . . . Squads Dispatched 8 | . 5 3 Investigation 2 | . 1 1 Extermination . | . . . Reinforcement 3 | . 2 1 Assault 3 | . 2 1 Garrison . | . . . Intercept . | . . . Construction Impeded . | . . . Haulers Reinforced . | . . . Stealth | -11 -10 -9 --------- Run | Scr Mat Mat Distress Signals 10 | . 2 8 Communications Jammed . | . . . Distress Signals . | . . . Times Spotted 24 | . 12 12 Peak Tracking Total 5 | . 5 5 Tactical Retreats 1 | . . 1 Traps | -11 -10 -9 ------- Run | Scr Mat Mat Traps Triggered . | . . . Indirectly . | . . . Trap Hack Attempts . | . . . Triggered . | . . . Disarmed . | . . . Reprogrammed . | . . . Reused . | . . . Traps Extracted . | . . . Installed . | . . . Triggered . | . . . Machines | -11 -10 -9 ---------- Run | Scr Mat Mat Machines Disabled . | . . . Max in Single Turn . | . . . Machines Sabotaged . | . . . Garrisons Compromised . | . . . Overloaded Fab Kills . | . . . Fab Network Shutdowns . | . . . Hacking | -11 -10 -9 --------- Run | Scr Mat Mat Machines Accessed 3 | . 1 2 Terminals 3 | . 1 2 Fabricators . | . . . Repair Stations . | . . . Recycling Units . | . . . Scanalyzers . | . . . Garrison Access . | . . . Total Hacks 6 | . 1 5 Successful 4 | . 1 3 Failed 2 | . . 2 Catastrophic . | . . . Database Lockouts . | . . . Manual 3 | . . 3 Terminals 6 | . 1 5 Fabricators . | . . . Repair Stations . | . . . Recycling Units . | . . . Scanalyzers . | . . . Garrison Access . | . . . Terminal Hacks 3 | . 1 2 Robot Analysis 1 | . . 1 Zone Layout 2 | . 1 1 Fabricator Hacks . | . . . Repair Station Hacks . | . . . Recycling Unit Hacks . | . . . Scanalyzer . | . . . Garrison Access Hacks . | . . . Unauthorized Hacks 3 | . . 3 Terminals 1 | . . 1 Botnet 1 | . . 1 Fabricators . | . . . Repair Stations . | . . . Recycling Units . | . . . Scanalyzers . | . . . Garrison Access . | . . . Data Cores Recovered . | . . . Used . | . . . Hacking Detections 2 | . . 2 Full Trace Events . | . . . Feedback Events . | . . . Feedback Blocked . | . . . Robot Schematics Acquired . | . . . Robots Built . | . . . Matter . | . . . Time . | . . . Total Robot Build Rating . | . . . Part Schematics Acquired . | . . . Parts Built . | . . . Matter . | . . . Time . | . . . Total Part Build Rating . | . . . Parts Repaired . | . . . Time . | . . . Parts Recycled . | . . . Recycled Matter . | . . . Retrieved Matter . | . . . Retrieved Components . | . . . Parts Scanalyzed . | . . . Part Schematics Acquired . | . . . Parts Damaged . | . . . Bothacking | -11 -10 -9 ------------ Run | Scr Mat Mat Used RIF Installer . | . . . Robots Hacked . | . . . Non-combat . | . . . Combat . | . . . Robot Hacks Applied . | . . . Relay Couplers Released . | . . . Robots Rewired . | . . . Allies Hacked . | . . . Hacks Repelled . | . . . Allies | -11 -10 -9 -------- Run | Scr Mat Mat Total Allies . | . . . Largest Group . | . . . Highest-Rated Group . | . . . Highest-Rated Ally . | . . . Total Orders . | . . . Ally Attacks . | . . . Total Damage . | . . . Kills . | . . . Allies Corrupted . | . . . Allies Melted . | . . . Intel | -11 -10 -9 ------- Run | Scr Mat Mat Robot Analysis Total 1 | . . 1 Derelict Logs Recovered . | . . . Drone Launches . | . . . Drone Recoveries . | . . . Exploration | -11 -10 -9 ------------- Run | Scr Mat Mat Turns Passed 873 | 126 410 337 Spaces Moved 501 | 80 231 190 Core 7 | 5 2 . Treads . | . . . Legs . | . . . Wheels 494 | 75 229 190 Hover . | . . . Flight . | . . . Fastest Speed 50 | 50 90 100 Average Speed 100 | 87 105 100 Slowest Speed 750 | 100 750 100 Overloaded Moves . | . . . Propulsion Burnouts . | . . . Robots Hopped . | . . . Cave-ins Triggered . | . . . Exploration Rate (%) 25 | 5 48 24 Regions Visited 2 Branch Regions . Pre-discovered Areas . | . . . Known Exits Taken . | . . . Unknown Exits Taken 2 | 1 1 . Scrap Searched . | . . . Spaces Dug . | . . . Terrain Destroyed 34 | . 34 . Melee . | . . . Projectile . | . . . AOE 34 | . 34 . Actions | -11 -10 -9 --------- Run | Scr Mat Mat Total 676 | 107 306 263 Wait 19 | . 3 16 Move 497 | 79 229 189 Hop . | . . . Pick Up 17 | 6 7 4 Fast Attach 14 | 7 2 5 Attach 8 | . 3 5 Detach 4 | . 3 1 Swap 4 | . 3 1 Drop 7 | 1 2 4 Fire 106 | 14 54 38 Melee . | . . . Ram . | . . . Kick . | . . . Crush . | . . . Escape Stasis . | . . . Rewire . | . . . Trap . | . . . Miscellaneous . | . . . Route ------- -11/Scrapyard -10/Materials -9/Materials History --------- Turn | Location | Event 8 | -11/Scrapyard | Discovered new exit (range 15) 127 | -11/Scrapyard | Entered Materials 239 | -10/Materials | Discovered new exit (range 11) 308 | -10/Materials | Build established: Mutant 474 | -10/Materials | Discovered new exit (range 16) 537 | -10/Materials | Entered another Materials area 537 | -9/Materials | Evolved 2 slots: Utility x2 746 | -9/Materials | Discovered new exit (range 11) 777 | -9/Materials | Discovered new exit (range 14) 874 | -9/Materials | Core integrity fell below 50% 874 | -9/Materials | Self-destructed Last Messages --------------- 00840_ Lesser Abomination absorbs Wheel. 00842_ Lesser Abomination spits out Wheel. 00842_ Lesser Abomination absorbs Wheel. 00843_ K-01 Serf collects debris. 00845_ Acquired 24 matter. 00847_ Lesser Abomination absorbs Com. Wheel. 00847_ K-01 Serf collects debris. 00848_ Acquired Shotgun. 00851_ Lesser Abomination absorbs Lgt. Treads. 00853_ K-01 Serf destroyed. 00856_ Lesser Abomination absorbs Recoil Stabilizer. 00858_ Frozen by Ice Anomaly. 00858_ Lesser Abomination spits out Com. Wheel. 00858_ Lesser Abomination absorbs Wheel. 00858_ Lesser Abomination spits out Com. Wheel. 00858_ Lesser Abomination absorbs Com. Wheel. 00858_ Hvy. EM Pulse Gun destroyed. 00861_ Lesser Abomination spits out Wheel. 00861_ Lesser Abomination absorbs Wheel. 00867_ ALERT: Dispatching additional forces to engage threats. Map ----- +----------------------------------------------------+ | | | | | ?????????????????????????????????????????????????? | | ?????????????????????????????????????????????????? | | ?????????????????????????????????????????????????? | | ?????????????????????????????????????????????????? | | ?????????????????????????????????????????????????? | | ?????????????????????????????????????????????????? | | ?????????????????????????????????????????????????? | | ?????????????????????????????????????????????????? | | ?????????????????????????????????????????????????? | | ?????????????????????????????????????????????????? | | ?????????????????????????????????????????????????? | | ?????????????????????????????????????????????????? | | ?????????????????????????????????????????????????? | | ?????????????????????????????????????????????????? | | ?????????????????????????????????????????????????? | | ?????????????????????????????????????????????????? | | ?????????????????????????????????????????????????? | | ?????????????????????????????????????????????????? | | ?????????????????????????????????????????????????? | | ????????????????????########?????????????????????? | | ??????????????????### #?????????????????????? | | #######???????????# + #?????????????????????? | | ! #???????????# # #?????????????????????? | | ""#??########## # A<@ #?????????????????????? | | T"#??# /A #?????????????????????? | | ""#??# = # # ???????????????????? | | #??# ##########???????????????????? | | #??# = % +%???????????? | | ###+###??# ##### #????????????? | | # #### #???# #????????????? | | # #???# ????????????? | | # < #???# % ##+#####????????????? | | # #???# #???????????????????? | | # ######???# % #???????????????????? | | ### ###????????# ######## %#???????????????????? | | # ##########?# #??????? #???????????????????? | | ##" ## [ [ #?# #???????? #???????????????????? | | # ###+###?????? #???????????????????? | | %+ # ??????? #???????????????????? | | #+####### ???????? ???????????????????? | | #?#####??????????????###??????????????????? | | # ! #???????????????????????????????????? | | = # #???????????????????????????????????? | | ! + """#???????????????????????????????????? | | # """#???????????????????????????????????? | | # """#???????????????????????????????????? | | #? #???????????????????????????????????? | | #? ! ####+###????????????????????????????? | +----------------------------------------------------+ Best States ------------- Heat Dissipation 38 Energy Generation 10 Energy Capacity 250 Matter Stores 300 Matter Capacity 300 Sight Range 18 Terrain Scan Range 16 Terrain Scan Density 10 Evasion (%) 42 Item Schematics ----------------- None Robot Schematics ------------------ None Fabricated ------------ Nothing Alien Tech Used ----------------- None Achievements -------------- None Challenges ------------ None Game ------ Seed UltimateGammaRegenerator Manual? 0 Play Time 00:13:04 Cumulative 246.7 hours Start 2019.10.30 @ 19:50:17 End 2019.10.30 @ 20:22:11 Sessions 3 Manual Loads 0 Difficulty Rogue Special Mode Halloween2019/Abominations Game No. 94 Rogue 94 Adventurer 0 Explorer 0 Win Type - Total 15 Types 8/0/4/1/1/1/0 Lore% 90 Gallery% 92 Achievement% 76 Wizard Run 0 Options --------- ASCII 0 Keyboard 0 Movement Numpad Keybinds 0 Fullscreen 2 Font 18/SmallcapsGlow Map View 76x50 Tactical HUD 1 Map Filters NONE Filters NONE Steam 1 RUN: 65772038-057f-4079-a3dc-20a3f4495c42